bitfinex/quotes_ETHUSD_20241022
["timestamp","ask_amount","ask_price","bid_price","bid_amount"]
[1729594029551,1.33225933,2633.6,2633.5,0.14825556]
[1729594029760,1.33225933,2633.7,2633.5,0.14825556]
[1729594029956,1.33225933,2633.8,2633.5,0.14825556]
[1729594030124,1.33225933,2633.8,2633.5,3.94544556]
[1729594030325,1.33225933,2633.8,2633.6,0.47730456]
[1729594030848,1.33225933,2633.8,2633.7,0.14813075]
[1729594031418,1.33225933,2633.8,2633.4,0.8276]
[1729594031614,3.79668,2633.9,2633.4,0.8276]
[1729594031615,1.33225933,2633.7,2633.4,0.8276]
[1729594032252,1.33225933,2633.7,2633.5,0.93299886]
[1729594032767,1.32225933,2633.7,2633.5,0.93299886]
[1729594033654,1.32225933,2633.7,2633.4,0.8276]
[1729594035459,1.33225933,2633.7,2633.3,3.79739]
[1729594036160,5.12919933,2633.7,2633.3,3.79739]
[1729594036816,1.33225933,2633.6,2633.2,0.754]
[1729594037137,1.33225933,2633.6,2633.0,0.754]
[1729594037138,1.33225933,2633.4,2633.0,0.754]
[1729594037457,5.12968933,2633.4,2633.1,0.455194]
[1729594038330,3.79756,2633.3,2633.0,0.754]
[1729594038536,5.12969933,2633.4,2633.0,0.754]
[1729594038734,3.79744,2633.4,2633.0,0.754]
[1729594039561,3.79756,2633.3,2633.0,0.754]
[1729594039965,5.12991933,2633.2,2632.8,0.754]
[1729594040126,4.60726,2633.2,2632.8,1.34245393]
[1729594040323,4.60726,2633.2,2632.8,5.14067393]
[1729594040550,5.93951933,2633.2,2632.8,5.14067393]
[1729594040955,9.73724933,2633.2,2632.8,1.34245393]
[1729594041156,5.93951933,2633.2,2632.8,5.14068393]
[1729594041364,5.12973933,2633.4,2632.9,4.19865954]
[1729594041548,3.79738,2633.4,2633.1,0.7809]
[1729594041961,5.12963933,2633.4,2633.1,0.7809]
[1729594042799,7.59437,2633.6,2633.2,0.14843793]
[1729594043100,1.33225933,2633.5,2633.2,0.14843793]
[1729594043252,3.79654,2634.0,2633.5,4.60925]
[1729594043452,2.14895933,2634.1,2633.7,3.79691]
[1729594043653,0.01900055,2634.6,2633.8,3.7967]
[1729594043654,5.94506933,2634.3,2633.8,3.7967]
[1729594043853,5.12822933,2634.4,2633.9,3.79655]
[1729594044165,1.33225933,2634.3,2634.0,0.96001908]
[1729594044947,3.79597,2634.4,2634.0,0.96001908]
[1729594044948,5.12822933,2634.4,2634.0,0.96001908]
[1729594045261,1.33225933,2634.3,2634.0,0.96001908]
[1729594045783,1.33225933,2634.2,2634.0,0.96001908]
[1729594045951,1.33225933,2634.1,2634.0,0.96001908]
[1729594046152,1.33225933,2634.1,2634.0,0.14791908]
[1729594046383,1.33225933,2634.1,2633.8,0.7822]
[1729594046591,1.33225933,2634.1,2634.0,0.14790928]
[1729594046758,1.33225933,2634.1,2633.8,1.240103]
[1729594046961,4.60463,2634.2,2634.0,0.14790928]
[1729594047179,4.60463,2634.2,2633.7,3.79683]
[1729594047180,5.12861933,2634.1,2633.7,3.79683]
[1729594047384,1.33225933,2633.9,2633.8,0.457793]
[1729594047690,1.33225933,2634.0,2633.8,0.457793]
[1729594048359,1.33225933,2634.1,2633.8,0.457793]
[1729594049361,1.33225933,2634.0,2633.8,0.457793]
[1729594054215,5.12863933,2634.1,2633.8,0.457793]
[1729594055172,1.33225933,2634.0,2633.8,0.457793]
[1729594055528,5.12863933,2634.1,2633.8,0.457793]
[1729594056294,1.33225933,2633.9,2633.6,0.7811]
[1729594056496,5.12897933,2633.9,2633.4,0.8093]
[1729594056920,5.12897933,2633.9,2633.4,4.60665]
[1729594057627,5.12897933,2633.9,2633.5,0.14773125]
[1729594058024,3.79672,2633.9,2633.5,0.14773125]
[1729594058180,1.33225933,2634.0,2633.5,4.55360831]
[1729594058487,5.12872933,2634.1,2633.5,5.88586764]
[1729594058879,5.12848933,2634.2,2633.8,3.79677]
[1729594059120,3.79579,2634.5,2634.0,3.79641]
[1729594059321,3.79579,2634.5,2633.9,0.8093]
[1729594059322,3.79594,2634.4,2633.9,6.08560958]
[1729594059521,5.12819933,2634.4,2634.1,0.14742547]
[1729594059726,5.12819933,2634.4,2634.0,0.14745846]
[1729594060019,1.33225933,2634.5,2634.1,0.14739608]
[1729594060231,1.33225933,2634.5,2634.1,3.94364608]
[1729594060920,1.33225933,2634.5,2634.1,0.14739608]
[1729594061278,1.33225933,2634.4,2634.1,3.94373608]
[1729594061478,1.33225933,2634.5,2634.1,3.94373608]
[1729594062284,1.33225933,2634.5,2634.2,0.84135412]
[1729594062480,1.33225933,2634.5,2634.3,0.14727133]
[1729594062784,1.33225933,2634.5,2634.2,0.84135412]
[1729594063011,1.33225933,2634.5,2634.4,0.14720896]
[1729594063209,1.33225933,2634.5,2634.3,0.14727133]
[1729594063421,1.33225933,2634.5,2634.1,3.79634]
[1729594063591,1.33225933,2634.5,2634.1,4.83711044]
[1729594064383,1.33225933,2634.4,2634.1,4.83711044]
[1729594064588,1.33225933,2634.4,2634.2,3.79617]
[1729594065237,4.56966055,2634.6,2634.3,4.60536]
[1729594065238,0.01900055,2634.6,2634.3,4.60536]
[1729594065536,1.33225933,2634.7,2634.4,4.256446]
[1729594065885,1.33225933,2634.7,2634.4,0.460536]
[1729594066126,1.33225933,2634.7,2634.4,4.256446]
[1729594066481,1.33225933,2634.8,2634.4,4.256446]
[1729594066857,1.33225933,2634.7,2634.4,4.256446]
[1729594067060,1.33225933,2634.7,2634.5,0.8861806]
[1729594068248,1.33225933,2634.6,2634.5,0.8861806]
[1729594069356,1.33225933,2634.6,2634.3,4.60536]
[1729594070756,1.33225933,2634.7,2634.3,4.60536]
[1729594070956,1.33225933,2634.6,2634.3,4.60536]
[1729594071346,1.33225933,2634.7,2634.3,4.6053]
[1729594071541,1.33225933,2634.7,2634.4,3.79593]
[1729594071715,1.33225933,2634.7,2634.4,4.256453]
[1729594072521,1.33225933,2634.7,2634.5,0.1467694]
[1729594072717,1.33225933,2634.8,2634.5,0.1467694]
[1729594072954,1.33225933,2634.7,2634.5,0.1467694]
[1729594080588,5.12770933,2634.8,2634.5,0.1467694]
[1729594080834,1.33225933,2634.7,2634.5,1.04761864]
[1729594080972,5.12789933,2634.6,2634.5,0.1467694]
[1729594081166,3.79581,2634.5,2634.1,3.79624]
[1729594081486,5.12806933,2634.5,2634.2,0.14693694]
[1729594081669,5.93300933,2634.6,2634.2,0.14693694]
[1729594081869,5.93300933,2634.6,2634.2,0.85683869]
[1729594082111,5.93300933,2634.6,2634.3,0.14687456]
[1729594082498,5.93300933,2634.6,2634.2,0.85683869]
[1729594082813,5.93300933,2634.6,2634.3,0.14687456]
[1729594083167,5.93300933,2634.6,2634.2,0.85683869]
[1729594083370,2.13735933,2634.6,2634.3,0.14687456]
[1729594083620,5.93301933,2634.6,2634.2,0.85683869]
[1729594083816,5.93301933,2634.6,2634.4,0.14681219]
[1729594083984,5.93301933,2634.6,2634.3,0.14687456]
[1729594084184,5.93301933,2634.6,2634.5,0.14674983]
[1729594084520,5.93301933,2634.6,2634.4,0.14681219]
[1729594084684,5.93301933,2634.6,2634.5,0.14674983]
[1729594085118,5.93301933,2634.6,2634.2,0.85683869]
[1729594085420,1.33225933,2634.6,2634.3,0.46531887]
[1729594085586,3.0,2635.0,2634.4,4.60511]
[1729594085770,5.12746933,2634.9,2634.4,4.60505]
[1729594086024,1.33225933,2634.8,2634.5,0.14674983]
[1729594086518,1.33225933,2634.8,2634.5,3.94251983]
[1729594086685,1.33225933,2634.8,2634.5,4.85139998]
[1729594087319,0.7687,2635.0,2634.6,3.79563]
[1729594087475,1.33225933,2634.9,2634.6,3.79563]
[1729594087675,1.33225933,2634.9,2634.7,0.14662511]
[1729594088622,1.33225933,2634.9,2634.5,4.70466015]
[1729594088915,1.33225933,2634.9,2634.8,0.14644522]
[1729594089132,1.33225933,2634.9,2634.5,4.70466015]
[1729594089386,1.33225933,2634.9,2634.8,0.14644522]
[1729594089516,1.33225933,2634.9,2634.5,4.70466015]
[1729594089705,1.33225933,2634.9,2634.6,0.14656993]
[1729594089908,1.33225933,2634.8,2634.6,0.14656993]
[1729594091030,1.33225933,2634.9,2634.6,0.14656993]
[1729594091328,1.33225933,2634.7,2634.6,0.14656993]
[1729594091532,1.33225933,2634.8,2634.6,0.71260394]
[1729594092235,5.12746933,2634.9,2634.6,0.71260394]
[1729594092698,1.33225933,2634.8,2634.6,0.71260394]
[1729594094327,5.12746933,2634.9,2634.6,0.71260394]
[1729594094537,5.12746933,2634.9,2634.6,0.14656993]
[1729594095102,1.33225933,2634.9,2634.6,0.14656993]
[1729594095501,1.33225933,2634.8,2634.6,0.14656993]
[1729594095724,5.93404933,2634.7,2634.6,0.14656993]
[1729594096108,3.79582,2634.5,2634.0,4.59579]
[1729594096437,8.92397933,2634.5,2634.0,4.59579]
[1729594096745,1.33225933,2634.4,2634.0,4.59579]
[1729594097535,5.12807933,2634.5,2634.0,4.59579]
[1729594098589,3.79594,2634.4,2634.0,0.7993]
[1729594099077,3.79594,2634.4,2634.0,4.59577]
[1729594099276,3.79594,2634.4,2634.0,5.56822793]
[1729594099574,5.12819933,2634.4,2634.0,5.56822793]
[1729594099765,1.33225933,2634.4,2634.0,5.56822793]
[1729594099960,3.79579,2634.5,2634.0,5.56822793]
[1729594099961,8.92392933,2634.5,2634.0,5.56822793]
[1729594100174,5.12804933,2634.5,2634.0,5.56822793]
[1729594100488,8.92391933,2634.5,2634.1,0.81869427]
[1729594100647,5.12804933,2634.5,2634.0,4.59577]
[1729594102451,1.33225933,2634.4,2634.0,4.59577]
[1729594102634,5.12804933,2634.5,2634.1,0.1468279]
[1729594103672,1.33225933,2634.2,2634.1,0.1468279]
[1729594103886,5.12846933,2634.2,2634.1,0.1468279]
[1729594104187,5.12846933,2634.2,2633.6,4.69673384]
[1729594104342,3.79585,2634.5,2634.1,0.8238]
[1729594104581,5.12810933,2634.5,2634.2,0.14685365]
[1729594106688,1.33225933,2634.4,2634.2,0.14685365]
[1729594107827,1.33225933,2634.4,2634.2,0.14685365]
[1729594109243,5.12810933,2634.5,2634.2,0.14685365]
[1729594112441,1.33225933,2634.4,2634.2,0.14685365]
[1729594114740,5.12810933,2634.5,2634.2,0.14685365]
[1729594114951,1.33225933,2634.5,2634.2,0.14685365]
[1729594115240,1.33225933,2634.3,2634.2,0.14685365]
[1729594115607,5.12832933,2634.3,2634.2,0.14685365]
[1729594118269,5.12864933,2634.1,2633.7,1.07732293]
[1729594118418,5.12864933,2634.1,2633.9,0.14713877]
[1729594118617,3.79639,2634.1,2633.8,0.14720116]
[1729594118920,5.12864933,2634.1,2634.0,0.14707638]
[1729594119261,5.12864933,2634.1,2634.0,0.14716455]
[1729594119414,5.12864933,2634.1,2633.7,0.794]
[1729594119610,5.12864933,2634.1,2634.0,0.14716455]
[1729594119847,5.12864933,2634.1,2633.7,0.794]
[1729594120024,3.79639,2634.1,2634.0,0.14716455]
[1729594120225,5.12848933,2634.2,2633.7,4.59087]
[1729594120460,5.12848933,2634.2,2634.0,0.14716455]
[1729594120662,5.12848933,2634.2,2633.7,5.56288093]
[1729594120846,5.12848933,2634.2,2634.1,0.14710216]
[1729594121054,5.12848933,2634.2,2633.7,5.56288093]
[1729594121352,5.12848933,2634.2,2634.1,0.14710216]
[1729594121567,5.12848933,2634.2,2633.7,5.56288093]
[1729594121717,5.12848933,2634.2,2634.1,0.14710216]
[1729594122350,5.12848933,2634.2,2633.7,4.59087]
[1729594122556,5.12848933,2634.2,2634.1,0.14710216]
[1729594122712,5.12848933,2634.2,2633.7,4.59087]
[1729594122912,5.12848933,2634.2,2634.1,0.14710216]
[1729594123117,1.33225933,2634.2,2633.7,0.794]
[1729594123425,5.12849933,2634.2,2633.7,1.38632393]
[1729594123760,3.79636,2634.1,2633.8,0.14728933]
[1729594124057,3.79636,2634.1,2633.7,1.38632393]
[1729594124264,5.12848933,2634.2,2633.7,5.18324393]
[1729594124419,5.12848933,2634.2,2633.8,0.14739216]
[1729594124928,3.79623,2634.2,2633.8,1.04598354]
[1729594125134,3.79598,2634.4,2634.0,0.8318]
[1729594125334,1.33225933,2634.4,2634.1,3.79636]
[1729594125655,1.33225933,2634.4,2634.1,3.943565]
[1729594126244,1.33225933,2634.4,2634.1,0.147205]
[1729594126457,1.33225933,2634.3,2634.1,0.147205]
[1729594127040,1.33225933,2634.3,2634.1,1.0044075]
[1729594128250,1.33225933,2634.4,2634.1,1.0044075]
[1729594129367,1.33225933,2634.3,2634.1,0.147205]
[1729594129720,1.33225933,2634.2,2634.1,0.147205]
[1729594130054,1.33225933,2634.2,2633.6,0.8091]
[1729594130055,2.08605933,2634.2,2633.6,0.8091]
[1729594130257,5.12867933,2634.1,2633.6,4.60611]
[1729594130459,1.33225933,2634.0,2633.6,0.8091]
[1729594130618,5.12867933,2634.1,2633.6,5.57964993]
[1729594132934,5.12867933,2634.1,2633.7,0.14744476]
[1729594133427,2.08605933,2634.2,2633.7,3.94435476]
[1729594133628,2.08605933,2634.2,2633.7,7.74121476]
[1729594133830,5.88229933,2634.2,2633.7,3.94430476]
[1729594134053,5.88229933,2634.2,2633.8,0.7059234]
[1729594134599,5.88229933,2634.2,2633.9,0.14731997]
[1729594134935,9.67864933,2634.2,2633.9,0.14731997]
[1729594135137,5.88229933,2634.2,2633.7,3.79686]
[1729594135334,1.33225933,2634.1,2633.7,3.79686]
[1729594135536,1.33225933,2634.1,2633.8,0.14746566]
[1729594135986,5.88229933,2634.2,2633.7,4.86775193]
[1729594136277,5.88229933,2634.2,2633.8,0.14746566]
[1729594136579,5.88229933,2634.2,2633.7,4.86775193]
[1729594137082,5.88229933,2634.2,2633.8,0.14746566]
[1729594137433,9.67859933,2634.2,2633.7,4.86775193]
[1729594137635,9.67859933,2634.2,2633.9,0.14740326]
[1729594137897,9.67859933,2634.2,2633.8,0.85597005]
[1729594138172,9.67859933,2634.2,2634.0,0.14734087]
[1729594138377,9.67859933,2634.2,2634.1,0.14727849]
[1729594138535,5.88229933,2634.2,2633.7,4.86775193]
[1729594138732,5.88229933,2634.2,2633.8,0.84837679]
[1729594139105,9.67859933,2634.2,2633.8,0.84837679]
[1729594139434,5.88229933,2634.2,2633.8,0.84837679]
[1729594142236,4.55004,2634.2,2633.8,0.84837679]
[1729594142447,3.7599,2634.5,2633.9,4.55605]
[1729594142778,1.33225933,2634.3,2634.0,3.7965]
[1729594143003,1.33225933,2634.3,2634.0,3.94384087]
[1729594143536,1.33225933,2634.3,2634.0,0.14734087]
[1729594145140,1.33225933,2634.2,2634.0,0.14734087]
[1729594145348,5.12861933,2634.1,2634.0,0.14734087]
[1729594145661,5.12861933,2634.1,2633.6,4.6097]
[1729594145857,1.33225933,2634.0,2633.6,5.58360893]
[1729594146364,1.33225933,2634.0,2633.6,1.78660893]
[1729594146695,5.12865933,2634.1,2633.6,4.60967]
[1729594147045,0.809,2634.2,2633.8,1.33225933]
[1729594147249,5.12836933,2634.3,2633.9,4.57404]
[1729594147582,5.12836933,2634.3,2633.9,4.72143836]
[1729594148993,1.33225933,2634.3,2633.9,4.72143836]
[1729594149281,5.12832933,2634.3,2634.0,0.47214384]
[1729594149596,1.33225933,2634.4,2634.0,0.47214384]
[1729594149742,5.12820933,2634.4,2634.1,0.14727359]
[1729594150768,1.33225933,2634.3,2634.1,0.14727359]
[1729594152390,5.12837933,2634.3,2634.1,0.14727359]
[1729594152748,5.12837933,2634.3,2633.9,4.57403]
[1729594152951,5.12837933,2634.3,2634.2,0.14712793]
[1729594153145,5.12837933,2634.3,2633.9,5.411112]
[1729594153146,2.13365933,2634.4,2633.9,4.57403]
[1729594153463,2.13365933,2634.4,2633.9,0.7774]
[1729594153786,1.33225933,2634.3,2634.0,0.1472527]
[1729594156362,1.33225933,2634.2,2634.0,0.1472527]
[1729594156689,5.12847933,2634.2,2634.0,0.1472527]
[1729594156884,5.12861933,2634.1,2634.0,0.1472527]
[1729594157200,5.12861933,2634.1,2633.6,0.7566]
[1729594157343,3.79636,2634.1,2634.0,0.14719393]
[1729594157550,3.79636,2634.1,2633.6,0.7566]
[1729594158097,1.33225933,2634.0,2633.7,0.14738111]
[1729594158746,1.33225933,2633.9,2633.7,0.14738111]
[1729594160458,1.33225933,2633.8,2633.7,0.14738111]
[1729594162207,1.33225933,2633.9,2633.7,0.14738111]
[1729594163606,1.33225933,2634.2,2633.8,1.3579]
[1729594163893,1.33225933,2634.2,2633.9,0.14735429]
[1729594163894,1.33225933,2634.0,2633.9,0.14735429]
[1729594165049,5.95255933,2634.0,2633.9,0.14735429]
[1729594165462,5.15605933,2634.0,2633.2,0.8079]
[1729594165672,1.33225933,2633.5,2633.2,0.8079]
[1729594165877,1.33225933,2633.5,2633.3,0.14770912]
[1729594166298,1.33225933,2633.6,2633.3,0.55]
[1729594166504,1.33225933,2633.6,2633.4,0.14764671]
[1729594168593,1.33225933,2633.5,2633.4,0.14764671]
[1729594168788,1.33225933,2633.6,2633.4,0.14764671]
[1729594169500,1.33225933,2633.5,2633.4,0.14764671]
[1729594169993,1.33225933,2633.5,2633.2,0.8079]
[1729594170199,7.59425,2633.6,2633.4,0.14764671]
[1729594170503,1.33225933,2633.5,2633.2,0.8079]
[1729594170658,1.33225933,2633.4,2633.2,0.8079]
[1729594171696,1.33225933,2633.3,2632.9,0.7971]
[1729594171879,1.33225933,2633.1,2632.9,0.7971]
[1729594172191,1.33225933,2633.2,2632.9,0.7971]
[1729594172395,5.12978933,2633.3,2632.9,0.7971]
[1729594172599,1.33225933,2633.2,2632.9,1.01003593]
[1729594173659,1.33225933,2633.3,2632.9,1.01003593]
[1729594173856,1.33225933,2633.2,2632.9,1.01003593]
[1729594174261,1.33225933,2633.1,2632.9,1.01003593]
[1729594174510,1.33225933,2633.1,2632.9,0.7971]
[1729594176528,1.33225933,2633.0,2632.6,0.7983]
[1729594176709,1.33225933,2632.7,2632.6,0.7983]
[1729594177401,1.33225933,2632.7,2632.6,0.94665681]
[1729594178112,1.33225933,2632.8,2632.6,0.94665681]
[1729594179147,1.33225933,2632.9,2632.6,0.94665681]
[1729594179434,1.33225933,2632.8,2632.6,0.94665681]
[1729594179638,3.0,2633.2,2632.6,0.94665681]
[1729594179846,1.33225933,2633.0,2632.8,0.7763]
[1729594180336,1.33225933,2633.0,2632.9,0.14816947]
[1729594182633,5.13019933,2633.0,2632.5,0.7763]
[1729594182937,1.33225933,2632.7,2632.6,0.14863618]
[1729594183109,1.33225933,2632.8,2632.6,0.14863618]
[1729594186635,1.33225933,2632.8,2632.7,0.55]
[1729594187239,1.33225933,2632.8,2632.7,0.69857373]
[1729594196168,1.33225933,2632.9,2632.7,0.69857373]
[1729594196962,1.33225933,2633.0,2632.7,0.69857373]
[1729594197265,7.5955,2633.2,2632.9,0.55]
[1729594197427,1.33225933,2633.0,2632.9,0.55]
[1729594197854,1.33225933,2633.0,2632.9,0.69895852]
[1729594202435,8.36035,2633.3,2632.9,0.69895852]
[1729594202729,1.33225933,2633.0,2632.9,0.69895852]
[1729594204438,6.79732,2633.5,2633.1,0.55]
[1729594204763,3.79732,2633.5,2633.3,0.55]
[1729594205275,3.79732,2633.5,2633.4,0.14863659]
[1729594205564,5.12947933,2633.5,2633.4,0.14863659]
[1729594205771,5.12947933,2633.5,2633.3,0.55]
[1729594205971,1.33225933,2633.4,2633.1,0.55]
[1729594206171,1.33225933,2633.3,2633.1,0.55]
[1729594207643,1.33225933,2633.3,2633.2,0.69876142]
[1729594207840,1.33225933,2633.3,2633.2,0.90402756]
[1729594208075,1.33225933,2633.3,2633.2,0.69876142]
[1729594208279,8.91836933,2633.3,2633.2,0.14876142]
[1729594208573,8.91836933,2633.3,2632.2,5.14124933]
[1729594208574,3.79795,2633.0,2632.5,0.8003]
[1729594208745,1.33225933,2632.8,2632.5,0.8003]
[1729594208934,1.33225933,2632.9,2632.6,0.14891055]
[1729594209336,3.79734,2633.5,2632.8,2.13255933]
[1729594209640,1.33225933,2633.3,2632.8,1.41588396]
[1729594209781,1.33225933,2633.3,2632.9,0.69872321]
[1729594210284,1.33225933,2633.2,2632.9,0.69872321]
[1729594211157,1.33225933,2633.3,2633.0,0.7748]
[1729594211366,1.33225933,2633.4,2633.1,0.55]
[1729594211668,3.79722,2633.6,2633.1,0.69860325]
[1729594211669,1.33225933,2633.3,2633.1,0.69860325]
[1729594212582,3.79723,2633.5,2633.1,0.69860325]
[1729594212785,1.33225933,2633.2,2633.1,0.69860325]
[1729594232325,1.33225933,2633.2,2633.1,0.74634904]
[1729594234621,1.33225933,2633.3,2633.1,0.74634904]
[1729594235520,6.79697,2633.7,2633.1,0.74634904]
[1729594235704,1.33225933,2633.4,2633.1,0.74634904]
[1729594235895,1.33225933,2633.3,2633.1,0.74634904]
[1729594236100,1.33225933,2633.3,2633.1,1.27634394]
[1729594236333,6.81581055,2633.8,2633.2,0.757]
[1729594236521,1.33225933,2633.5,2633.3,0.55]
[1729594236702,5.91582933,2633.4,2633.2,0.55]
[1729594236895,4.58357,2633.4,2633.3,0.74621076]
[1729594237120,3.79733,2633.5,2633.3,0.74621076]
[1729594237304,3.79733,2633.5,2633.1,0.55]
[1729594237504,3.79733,2633.5,2633.4,0.19614654]
[1729594237733,5.12958933,2633.5,2633.1,0.55]
[1729594238035,3.79733,2633.5,2633.4,0.19614654]
[1729594238232,5.12958933,2633.5,2633.1,0.55]
[1729594238438,1.33225933,2633.4,2633.1,0.55]
[1729594238637,1.33225933,2633.4,2633.1,1.060507]
[1729594239432,3.79733,2633.5,2633.1,1.060507]
[1729594239433,1.33225933,2633.3,2633.1,0.55]
[1729594240200,1.33225933,2633.2,2633.1,0.55]
[1729594240433,1.33225933,2633.3,2633.1,0.55]
[1729594241165,1.33225933,2633.4,2633.1,0.55]
[1729594242114,1.33225933,2633.3,2633.1,0.55]
[1729594243210,3.79733,2633.5,2633.1,0.55]
[1729594243211,1.33225933,2633.4,2633.1,0.55]
[1729594244526,1.33225933,2633.3,2633.1,0.55]
[1729594245966,1.33225933,2633.4,2633.1,0.55]
[1729594246340,5.12955933,2633.5,2633.1,0.55]
[1729594246539,1.33225933,2633.4,2633.1,1.060506]
[1729594247069,1.33225933,2633.4,2633.1,0.55]
[1729594248470,0.7748,2633.6,2633.1,0.55]
[1729594248767,1.33225933,2633.5,2633.3,1.33]
[1729594249328,1.33225933,2633.6,2633.3,1.33]
[1729594249531,0.7787,2633.8,2633.5,0.55]
[1729594249738,3.79662,2634.0,2633.5,0.55]
[1729594249739,4.61152,2634.0,2633.5,0.55]
[1729594249922,3.0,2634.1,2633.7,0.55]
[1729594250128,6.79643,2634.1,2633.7,0.55]
[1729594250327,1.33225933,2633.8,2633.7,0.55]
[1729594251773,5.90974933,2633.8,2633.7,0.55]
[1729594252639,5.90974933,2633.8,2633.7,0.74571375]
[1729594253729,6.46130866,2633.8,2632.9,0.8146]
[1729594253930,1.33225933,2633.3,2633.0,0.19600162]
[1729594254776,1.33225933,2633.2,2633.0,0.19600162]
[1729594254983,1.33225933,2633.2,2633.1,0.55]
[1729594255134,1.33225933,2633.2,2633.1,0.74593738]
[1729594258938,1.33225933,2633.3,2633.1,0.74593738]
[1729594259138,1.33225933,2633.4,2633.1,0.74593738]
[1729594259582,1.33225933,2633.4,2633.3,0.55]
[1729594260055,1.33225933,2633.4,2633.3,0.7458089]
[1729594260970,3.79711,2633.6,2633.3,0.7458089]
[1729594260971,1.33225933,2633.5,2633.3,0.7458089]
[1729594262209,1.33225933,2633.4,2633.3,0.7458089]
[1729594263174,5.12962933,2633.4,2633.3,0.1958089]
[1729594263569,5.12962933,2633.4,2632.9,0.827]
[1729594263885,5.12936933,2633.6,2633.3,1.0258089]
[1729594264088,1.33225933,2633.6,2633.3,0.83]
[1729594264270,1.33225933,2633.5,2633.4,0.19584271]
[1729594264459,1.33225933,2633.5,2633.4,0.74584271]
[1729594265337,5.12947933,2633.5,2633.4,0.74584271]
[1729594265667,5.94547933,2633.5,2633.4,0.19584271]
[1729594266112,3.79752,2633.3,2632.9,0.7737]
[1729594266314,1.33225933,2633.2,2632.9,0.7737]
[1729594266620,1.33225933,2633.2,2633.0,0.19617806]
[1729594266824,1.33225933,2633.2,2633.1,0.55]
[1729594267119,1.33225933,2633.3,2633.1,0.55]
[1729594267320,1.33225933,2633.3,2633.1,0.74611381]
[1729594268011,5.12962933,2633.4,2633.1,0.74611381]
[1729594269577,1.33225933,2633.3,2633.1,0.74611381]
[1729594272221,5.12979933,2633.3,2633.1,0.74611381]
[1729594272384,1.33225933,2633.2,2633.1,0.74611381]
[1729594273175,5.88791933,2633.2,2633.1,0.74611381]
[1729594273378,5.88791933,2633.2,2633.1,0.19611381]
[1729594273785,3.79801,2633.0,2632.7,0.7706]
[1729594273985,1.33225933,2632.9,2632.7,0.7706]
[1729594274493,1.33225933,2632.9,2632.8,0.55]
[1729594275527,5.13034933,2632.9,2632.6,0.55]
[1729594275727,1.33225933,2632.8,2632.6,0.55]
[1729594276420,1.33225933,2632.7,2632.6,0.55]
[1729594276631,1.33225933,2632.8,2632.6,0.55]
[1729594277122,1.33225933,2632.8,2632.0,3.28346666]
[1729594277123,1.33225933,2632.7,2632.4,0.55]
[1729594277323,4.55035,2632.8,2632.2,0.55]
[1729594277324,1.33225933,2632.5,2632.2,0.55]
[1729594280017,5.13120933,2632.3,2632.2,0.55]
[1729594280204,3.7991,2632.2,2631.9,0.8039]
[1729594280420,1.33225933,2632.1,2631.9,0.8039]
[1729594280621,1.33225933,2632.2,2631.9,1.264271]
[1729594281000,1.33225933,2632.3,2631.9,1.264271]
[1729594281335,1.33225933,2632.2,2631.9,1.264271]
[1729594282335,1.33225933,2632.2,2632.0,0.55]
[1729594282832,3.7991,2632.2,2632.1,0.74707993]
[1729594283410,5.13135933,2632.2,2632.1,0.74707993]
[1729594284507,1.33225933,2632.2,2632.1,0.74707993]
[1729594285635,5.13135933,2632.2,2632.1,0.74707993]
[1729594285832,2.12435933,2632.2,2632.1,0.74707993]
[1729594287106,7.59776,2632.4,2632.1,0.74707993]
[1729594287107,1.33225933,2632.3,2632.1,0.74707993]
[1729594287304,5.13120933,2632.3,2632.2,0.55]
[1729594287835,5.13120933,2632.3,2632.2,0.74739807]
[1729594288942,3.79895,2632.3,2632.2,0.74739807]
[1729594289144,5.13120933,2632.3,2632.2,0.74739807]
[1729594293312,3.79895,2632.3,2632.2,0.74739807]
[1729594293514,3.79881,2632.4,2632.2,0.74739807]
[1729594293727,5.13120933,2632.3,2632.2,0.74739807]
[1729594293931,3.79895,2632.3,2632.2,0.74739807]
[1729594294121,5.13120933,2632.3,2632.2,0.74739807]
[1729594295435,3.7987,2632.5,2632.2,0.74739807]
[1729594295750,5.13120933,2632.3,2632.2,0.74739807]
[1729594310455,3.79882,2632.4,2632.3,0.7933]
[1729594310652,3.79882,2632.4,2632.3,1.3433]
[1729594310855,3.79882,2632.4,2632.3,1.54088387]
[1729594314354,5.13107933,2632.4,2632.3,1.54088387]
[1729594314835,5.13107933,2632.4,2632.3,0.74758387]
[1729594315459,5.13107933,2632.4,2632.3,0.55]
[1729594317358,5.13107933,2632.4,2632.3,0.74753973]
[1729594317767,5.13107933,2632.4,2632.3,0.55]
[1729594318464,5.13107933,2632.4,2632.3,0.74756916]
[1729594322370,1.33225933,2632.4,2632.1,0.55]
[1729594322515,3.7991,2632.2,2632.1,0.83273467]
[1729594322720,3.79927,2632.1,2632.0,0.55]
[1729594323031,3.79927,2632.1,2632.0,0.83273467]
[1729594325301,5.13152933,2632.1,2632.0,0.28273467]
[1729594326419,5.13152933,2632.1,2631.6,0.7801]
[1729594326420,3.7998,2631.8,2631.6,0.7801]
[1729594326608,3.7998,2631.8,2631.7,0.28320036]
[1729594326806,3.7998,2631.8,2631.7,0.83320036]
[1729594327530,3.7998,2631.8,2631.7,1.03120922]
[1729594329875,3.7998,2631.8,2631.7,0.74800886]
[1729594330738,3.79945,2632.0,2631.8,0.55]
[1729594330931,3.79945,2632.0,2631.9,1.3568]
[1729594331236,3.79945,2632.0,2631.9,1.55468025]
[1729594331686,5.13170933,2632.0,2631.9,0.74788025]
[1729594332799,5.13170933,2632.0,2631.9,0.55]
[1729594335304,5.13170933,2632.0,2631.9,0.74807646]
[1729594335730,5.13170933,2632.0,2631.9,0.55]
[1729594336536,3.79992,2631.7,2631.5,0.55]
[1729594336905,3.79992,2631.7,2631.6,0.74826938]
[1729594342918,5.13195933,2631.8,2631.7,0.55]
[1729594343458,3.7997,2631.8,2631.7,0.74828353]
[1729594347904,5.13195933,2631.8,2631.7,0.74828353]
[1729594349974,3.79953,2631.9,2631.7,0.74828353]
[1729594350177,3.799,2632.3,2631.9,0.55]
[1729594350375,0.7906,2632.2,2631.8,0.8273]
[1729594350616,3.79953,2631.9,2631.8,1.3773]
[1729594351280,3.79953,2631.9,2631.8,0.55]
[1729594351481,3.79953,2631.9,2631.7,0.55]
[1729594353000,3.79939,2632.0,2631.7,0.55]
[1729594353201,3.79939,2632.0,2631.7,1.060159]
[1729594353505,3.79919,2632.2,2631.7,6.19214833]